bitfinex/quotes_BTCUSD_20250601
["timestamp","ask_amount","ask_price","bid_price","bid_amount"]
[1748769293216,1.02216853,104260.0,104250.0,0.04119012]
[1748769293787,1.02216853,104260.0,104250.0,0.06815857]
[1748769294023,1.02216853,104260.0,104250.0,0.04119012]
[1748769294222,1.02216853,104260.0,104250.0,0.0501796]
[1748769294423,1.02216853,104260.0,104250.0,0.04119012]
[1748769294673,1.02216853,104260.0,104250.0,0.05916916]
[1748769294879,1.02216853,104260.0,104250.0,0.05017964]
[1748769295117,1.02216853,104260.0,104250.0,0.04119012]
[1748769295284,1.02216853,104260.0,104250.0,0.05916916]
[1748769295665,1.02216853,104260.0,104250.0,0.06815868]
[1748769296084,0.72580853,104260.0,104250.0,0.0681589]
[1748769296331,1.02108853,104260.0,104250.0,0.04119012]
[1748769296551,1.02108853,104260.0,104250.0,0.05916907]
[1748769296751,1.02108853,104260.0,104250.0,0.04119012]
[1748769296954,1.02108853,104260.0,104250.0,0.06815858]
[1748769297390,1.02100853,104260.0,104250.0,0.06815858]
[1748769298018,1.02100853,104260.0,104250.0,0.06815818]
[1748769298218,1.02100853,104260.0,104250.0,0.05916882]
[1748769298429,1.02100853,104260.0,104250.0,0.05017946]
[1748769298585,1.02100853,104260.0,104250.0,0.06815818]
[1748769299418,1.02100853,104260.0,104250.0,0.06815805]
[1748769299740,1.02100853,104260.0,104250.0,0.0681579]
[1748769299917,1.01841649,104260.0,104250.0,0.05017938]
[1748769300330,1.01841649,104260.0,104250.0,0.06815789]
[1748769300898,1.01841649,104260.0,104250.0,0.06815779]
[1748769301667,1.01841649,104260.0,104250.0,0.06815777]
[1748769301876,1.01841649,104260.0,104250.0,0.05017931]
[1748769302085,1.01841649,104260.0,104250.0,0.04119012]
[1748769302279,1.01841649,104260.0,104250.0,0.05916852]
[1748769302488,1.01841649,104260.0,104250.0,0.06815772]
[1748769302694,1.01841649,104260.0,104250.0,0.06815769]
[1748769303606,1.01841649,104260.0,104250.0,0.06815762]
[1748769303793,1.01841649,104260.0,104250.0,0.05916845]
[1748769303981,1.01841649,104260.0,104250.0,0.06815761]
[1748769304186,1.01841649,104260.0,104250.0,0.06815759]
[1748769304594,1.01841649,104260.0,104250.0,0.04119012]
[1748769305102,1.01841649,104260.0,104250.0,0.05017926]
[1748769305303,1.01841649,104260.0,104250.0,0.05916842]
[1748769305662,1.01841649,104260.0,104250.0,0.06815762]
[1748769306390,1.01841649,104260.0,104250.0,0.06815678]
[1748769306587,1.01841649,104260.0,104250.0,0.04119012]
[1748769306831,1.01841649,104260.0,104250.0,0.0681564]
[1748769307691,1.12546856,104260.0,104250.0,0.0369564]
[1748769307912,1.12546856,104260.0,104250.0,0.00999012]
[1748769308337,1.03295734,104260.0,104250.0,0.02796919]
[1748769308499,1.03295734,104260.0,104250.0,0.01897963]
[1748769308701,1.03295734,104260.0,104250.0,0.00999012]
[1748769308882,1.03295734,104260.0,104250.0,0.03695863]
[1748769309434,1.03295734,104260.0,104250.0,0.00999012]
[1748769309588,1.03295734,104260.0,104250.0,0.03694303]
[1748769309799,1.03295734,104260.0,104250.0,0.01897442]
[1748769310005,1.03295734,104260.0,104250.0,0.03694303]
[1748769310549,1.03295734,104260.0,104250.0,0.06774303]
[1748769310757,1.03295734,104260.0,104250.0,0.06773826]
[1748769310953,1.03295734,104260.0,104250.0,0.06773588]
[1748769311184,0.73775734,104260.0,104250.0,0.06773588]
[1748769311362,1.01837649,104260.0,104250.0,0.06773588]
[1748769311583,1.01837649,104260.0,104250.0,0.06772992]
[1748769311800,1.01837649,104260.0,104250.0,0.04079012]
[1748769311943,1.01837649,104260.0,104250.0,0.06772899]
[1748769312152,1.01837649,104260.0,104250.0,0.0677288]
[1748769312924,1.01837649,104260.0,104250.0,0.06772847]
[1748769313146,1.01837649,104260.0,104250.0,0.04976958]
[1748769313274,1.01837649,104260.0,104250.0,0.0677281]
[1748769313506,1.01837649,104260.0,104250.0,0.06772808]
[1748769313719,1.01837649,104260.0,104250.0,0.05874876]
[1748769313955,1.01837649,104260.0,104250.0,0.06772764]
[1748769314160,1.01837649,104260.0,104250.0,0.06772761]
[1748769314807,1.01837649,104260.0,104250.0,0.04079012]
[1748769315096,1.01837649,104260.0,104250.0,0.06772748]
[1748769315247,1.01837649,104260.0,104250.0,0.04976924]
[1748769315461,1.01837649,104260.0,104250.0,0.06772748]
[1748769315661,1.01837649,104260.0,104250.0,0.04079012]
[1748769315860,1.01837649,104260.0,104250.0,0.05874836]
[1748769316325,1.01837649,104260.0,104250.0,0.04976919]
[1748769316870,1.01837649,104260.0,104250.0,0.04079012]
[1748769317509,1.01837649,104260.0,104250.0,0.05874826]
[1748769317711,1.01837649,104260.0,104250.0,0.04976919]
[1748769318291,1.01837649,104260.0,104250.0,0.07670571]
[1748769318500,1.01837649,104260.0,104250.0,0.06772687]
[1748769318715,1.01837649,104260.0,104250.0,0.04976919]
[1748769319608,1.01837649,104260.0,104250.0,0.05874803]
[1748769319812,1.01837649,104260.0,104250.0,0.04976919]
[1748769320020,1.01837649,104260.0,104250.0,0.07670605]
[1748769320457,1.01837649,104260.0,104250.0,0.05874814]
[1748769320665,1.01837649,104260.0,104250.0,0.07670551]
[1748769321508,1.01837649,104260.0,104250.0,0.07670587]
[1748769321687,1.01837649,104260.0,104250.0,0.05874796]
[1748769321896,1.01837649,104260.0,104250.0,0.07670605]
[1748769322098,1.01837649,104260.0,104250.0,0.05874814]
[1748769322405,1.01837649,104260.0,104250.0,0.0677271]
[1748769322642,1.01837649,104260.0,104250.0,0.07670605]
[1748769323231,1.01837649,104260.0,104250.0,0.07670641]
[1748769323736,1.01837649,104260.0,104250.0,0.0767064]
[1748769323872,1.01837649,104260.0,104250.0,0.07670659]
[1748769324081,1.01837649,104260.0,104250.0,0.0767066]
[1748769324308,1.01837649,104260.0,104250.0,0.07670662]
[1748769324714,1.01837649,104260.0,104250.0,0.0767068]
[1748769324927,1.01837649,104260.0,104250.0,0.07670714]
[1748769325492,1.01769649,104260.0,104250.0,0.07670714]
[1748769325902,1.01769649,104260.0,104250.0,0.07670713]
[1748769326076,1.01769649,104260.0,104250.0,0.07670716]
[1748769326304,1.01769649,104260.0,104250.0,0.05874851]
[1748769326514,1.01769649,104260.0,104250.0,0.04976919]
[1748769326715,1.01769649,104260.0,104250.0,0.0677279]
[1748769326932,1.01769649,104260.0,104250.0,0.04976919]
[1748769327342,1.01769649,104260.0,104250.0,0.05874854]
[1748769327546,0.72321649,104260.0,104250.0,0.04976919]
[1748769327758,0.45193181,104260.0,104250.0,0.26977943]
[1748769327971,0.64805676,104260.0,104250.0,0.28773775]
[1748769328173,0.94261676,104260.0,104250.0,0.28773739]
[1748769328375,0.94261676,104260.0,104250.0,0.30569517]
[1748769328580,0.94261676,104260.0,104250.0,0.30569503]
[1748769328786,0.94261676,104260.0,104250.0,0.29732934]
[1748769328962,0.97791676,104260.0,104250.0,0.29732934]
[1748769329165,0.97491676,104260.0,104250.0,0.29732934]
[1748769329370,0.97491676,104260.0,104250.0,0.32426619]
[1748769329573,0.97291676,104260.0,104250.0,0.30408219]
[1748769329779,0.97291676,104260.0,104250.0,0.31367461]
[1748769329977,0.97491676,104260.0,104250.0,0.29571671]
[1748769330206,0.97491676,104260.0,104250.0,0.31367499]
[1748769330422,0.96532563,104260.0,104250.0,0.08468564]
[1748769330840,0.96532563,104260.0,104250.0,0.10264437]
[1748769331225,0.96532563,104260.0,104250.0,0.08468579]
[1748769331433,0.96532563,104260.0,104250.0,0.0757065]
[1748769331649,0.96532563,104260.0,104250.0,0.08468579]
[1748769332328,0.96532563,104260.0,104250.0,0.09366508]
[1748769332546,0.96532563,104260.0,104250.0,0.08468579]
[1748769333812,0.96532563,104260.0,104250.0,0.09366571]
[1748769334049,0.96532563,104260.0,104250.0,0.08468579]
[1748769334629,0.96532563,104260.0,104250.0,0.11162705]
[1748769335044,1.168232,104260.0,104250.0,0.11162705]
[1748769335237,1.168232,104260.0,104250.0,0.08082898]
[1748769335463,1.168232,104260.0,104250.0,0.07184814]
[1748769335665,1.07572078,104260.0,104250.0,0.06286699]
[1748769335870,1.07572078,104260.0,104250.0,0.08528579]
[1748769336265,1.07572078,104260.0,104250.0,0.11223124]
[1748769336266,1.06113993,104260.0,104250.0,0.11223124]
[1748769336424,1.06113993,104260.0,104250.0,0.08528579]
[1748769336835,1.06113993,104260.0,104250.0,0.10324972]
[1748769337263,1.06113993,104260.0,104250.0,0.08528579]
[1748769337460,1.06113993,104260.0,104250.0,0.11223431]
[1748769337690,1.06113993,104260.0,104250.0,0.08528579]
[1748769338122,1.06113993,104260.0,104250.0,0.10325147]
[1748769338347,1.06113993,104260.0,104250.0,0.08528579]
[1748769338550,1.06117993,104260.0,104250.0,0.08528579]
[1748769339714,1.06117993,104260.0,104250.0,0.09426895]
[1748769340099,1.06117993,104260.0,104250.0,0.08528579]
[1748769340459,1.06117993,104260.0,104250.0,0.07185208]
[1748769340460,1.07572078,104260.0,104250.0,0.07185208]
[1748769340669,1.168232,104260.0,104250.0,0.05388579]
[1748769340847,1.692338,104260.0,104250.0,0.0628706]
[1748769341054,1.692338,104260.0,104250.0,0.05388579]
[1748769341260,1.692338,104260.0,104250.0,0.06287244]
[1748769341473,1.691338,104260.0,104250.0,0.06287244]
[1748769341744,1.694338,104260.0,104250.0,0.06287244]
[1748769342101,1.694338,104260.0,104250.0,0.05388579]
[1748769343163,1.692338,104260.0,104250.0,0.05388579]
[1748769343373,1.59982678,104260.0,104250.0,0.05388579]
[1748769343723,1.59982678,104260.0,104250.0,0.05488579]
[1748769343724,1.60282678,104260.0,104250.0,0.05488579]
[1748769344407,1.07872078,104260.0,104250.0,0.05488579]
[1748769349669,1.17972078,104260.0,104250.0,0.05488579]
[1748769349858,1.07872078,104260.0,104250.0,0.05488579]
[1748769350671,1.171232,104260.0,104250.0,0.05488579]
[1748769351507,6.63723184,104260.0,104250.0,0.01307609]
[1748769351628,6.75345283,104260.0,104250.0,0.01307609]
[1748769351853,0.56561186,104230.0,104220.0,0.08293669]
[1748769352075,1.55444048,104230.0,104220.0,0.08293669]
[1748769352282,1.93811048,104230.0,104220.0,0.08293669]
[1748769353623,1.94011048,104230.0,104220.0,0.08393669]
[1748769353863,1.94311048,104230.0,104220.0,0.08393669]
[1748769354448,1.86736121,104230.0,104220.0,0.09963669]
[1748769354650,1.88662742,104230.0,104220.0,0.09963669]
[1748769355636,1.88662742,104230.0,104220.0,0.11503669]
[1748769356580,1.89617403,104230.0,104220.0,0.11503669]
[1748769357261,1.89617403,104230.0,104220.0,0.08393669]
[1748769357463,1.98868525,104230.0,104220.0,0.08393669]
[1748769357659,7.03868525,104230.0,104220.0,0.08393669]
[1748769360771,6.65348525,104230.0,104220.0,0.08393669]
[1748769360981,1.58711318,104230.0,104220.0,0.11483669]
[1748769361197,1.89637403,104230.0,104220.0,0.11483669]
[1748769361444,1.89641403,104230.0,104220.0,0.11483669]
[1748769362053,1.60165403,104230.0,104220.0,0.11483669]
[1748769362249,1.98892525,104230.0,104220.0,0.11483669]
[1748769365317,1.98892525,104230.0,104220.0,0.08393669]
[1748769368101,1.98880076,104230.0,104220.0,0.08393669]
[1748769371874,1.99380175,104230.0,104220.0,0.10013669]
[1748769372038,1.99380175,104230.0,104220.0,0.08393669]
[1748769375333,2.02262075,104230.0,104220.0,0.08393669]
[1748769375539,7.07262075,104230.0,104220.0,0.08393669]
[1748769377138,7.07262075,104230.0,104220.0,0.06393669]
[1748769377843,7.07262075,104230.0,104220.0,0.0175]
[1748769378490,1.93010953,104230.0,104220.0,0.0332]
[1748769378900,1.62080868,104230.0,104220.0,0.0332]
[1748769379102,1.54766968,104230.0,104220.0,0.0332]
[1748769379455,1.50130968,104230.0,104220.0,0.04217021]
[1748769379681,1.9801809,104230.0,104220.0,0.04217091]
[1748769379887,1.97545554,104230.0,104220.0,0.04217087]
[1748769380193,1.97545554,104230.0,104220.0,0.04217079]
[1748769380194,1.97557554,104230.0,104220.0,0.04217079]
[1748769380802,1.97557554,104230.0,104220.0,0.0332]
[1748769380995,1.97557554,104230.0,104220.0,0.04218335]
[1748769381313,1.88306432,104230.0,104220.0,0.04218321]
[1748769381517,1.58730432,104230.0,104220.0,0.04218321]
[1748769381900,1.88294432,104230.0,104220.0,0.04218181]
[1748769382098,1.88294432,104230.0,104220.0,0.04218184]
[1748769382352,1.97545554,104230.0,104220.0,0.04218187]
[1748769382518,1.97545554,104230.0,104220.0,0.04218131]
[1748769382902,1.58909554,104230.0,104220.0,0.04218131]
[1748769383108,1.58909554,104230.0,104220.0,0.0332]
[1748769383109,1.49158333,104230.0,104220.0,0.0332]
[1748769383287,1.55821587,104230.0,104220.0,0.04218059]
[1748769383497,1.21821587,104230.0,104220.0,0.24367732]
[1748769383716,1.21821587,104230.0,104220.0,0.23469682]
[1748769383922,1.84446217,104230.0,104220.0,0.0332]
[1748769384129,1.13418217,104230.0,104220.0,0.0332]
[1748769384352,1.13218217,104230.0,104220.0,0.04217368]
[1748769384547,1.13418217,104230.0,104220.0,0.0332]
[1748769384973,1.13418217,104230.0,104220.0,0.04217368]
[1748769385174,1.13418217,104230.0,104220.0,0.0332]
[1748769385665,1.13118217,104230.0,104220.0,0.04117281]
[1748769385869,1.13418217,104230.0,104220.0,0.0332]
[1748769386068,1.13418217,104230.0,104220.0,0.04217281]
[1748769386271,1.13418217,104230.0,104220.0,0.0511456]
[1748769386476,1.13418217,104230.0,104220.0,0.04217281]
[1748769386859,1.13418217,104230.0,104220.0,0.05114442]
[1748769387921,1.13418217,104230.0,104220.0,0.04217281]
[1748769388344,1.13418217,104230.0,104220.0,0.05176789]
[1748769388559,1.13418217,104230.0,104220.0,0.05114443]
[1748769388771,1.13418217,104230.0,104220.0,0.05113598]
[1748769388978,1.13418217,104230.0,104220.0,0.05113597]
[1748769389392,1.43022217,104230.0,104220.0,0.05113597]
[1748769389571,1.43018217,104230.0,104220.0,0.05113597]
[1748769390044,1.43018217,104230.0,104220.0,0.05113558]
[1748769390563,1.43018217,104230.0,104220.0,0.04217281]
[1748769390870,1.43018217,104230.0,104220.0,0.05113106]
[1748769391275,1.43018217,104230.0,104220.0,0.05113105]
[1748769391623,1.43018217,104230.0,104220.0,0.05112845]
[1748769391824,1.43018217,104230.0,104220.0,0.05112847]
[1748769392445,1.43018217,104230.0,104220.0,0.05112845]
[1748769392646,1.43018217,104230.0,104220.0,0.05112685]
[1748769393281,1.43018217,104230.0,104220.0,0.04217281]
[1748769393642,1.43018217,104230.0,104220.0,0.05112545]
[1748769393851,1.43018217,104230.0,104220.0,0.04217281]
[1748769395549,1.43018217,104230.0,104220.0,0.05112385]
[1748769395750,1.43018217,104230.0,104220.0,0.04217281]
[1748769398124,1.43018217,104230.0,104220.0,0.05112394]
[1748769398324,1.43018217,104230.0,104220.0,0.04217281]
[1748769398524,1.43018217,104230.0,104220.0,0.05112394]
[1748769398728,1.43018217,104230.0,104220.0,0.04217281]
[1748769398882,1.43018217,104230.0,104220.0,0.05112394]
[1748769399087,1.43018217,104230.0,104220.0,0.04217281]
[1748769399285,1.43018217,104230.0,104220.0,0.05112394]
[1748769399546,1.43018217,104230.0,104220.0,0.05112393]
[1748769399701,1.43018217,104230.0,104220.0,0.04217281]
[1748769401771,1.43018217,104230.0,104220.0,0.05112383]
[1748769401975,1.43018217,104230.0,104220.0,0.04217281]
[1748769403034,1.43018217,104230.0,104220.0,0.05112383]
[1748769403242,1.43018217,104230.0,104220.0,0.04217281]
[1748769403961,1.43018217,104230.0,104220.0,0.05112505]
[1748769404208,1.43018217,104230.0,104220.0,0.04217281]
[1748769404938,1.43018217,104230.0,104220.0,0.05112505]
[1748769405189,1.43018217,104230.0,104220.0,0.04217281]
[1748769405603,1.43018217,104230.0,104220.0,0.05112788]
[1748769405776,1.43018217,104230.0,104220.0,0.04217281]
[1748769405972,1.43018217,104230.0,104220.0,0.05112788]
[1748769407517,1.43018217,104230.0,104220.0,0.06009262]
[1748769407942,1.43018217,104230.0,104220.0,0.05112788]
[1748769408961,1.43018217,104230.0,104220.0,0.06009262]
[1748769409971,1.43018217,104230.0,104220.0,0.06009806]
[1748769411192,1.43018217,104230.0,104220.0,0.05112788]
[1748769411492,1.43018217,104230.0,104220.0,0.06010112]
[1748769411841,1.43018217,104230.0,104220.0,0.05112788]
[1748769412047,1.43018217,104230.0,104220.0,0.06011151]
[1748769412656,1.43018217,104230.0,104220.0,0.05112788]
[1748769412867,1.43018217,104230.0,104220.0,0.06011151]
[1748769413375,1.43018217,104230.0,104220.0,0.05112788]
[1748769414933,1.43018217,104230.0,104220.0,0.06011999]
[1748769415353,1.43018217,104230.0,104220.0,0.05112788]
[1748769415557,1.43018217,104230.0,104220.0,0.06011993]
[1748769417232,1.43018217,104230.0,104220.0,0.06011992]
[1748769417653,1.43018217,104230.0,104220.0,0.05112788]
[1748769418183,1.43018217,104230.0,104220.0,0.06011992]
[1748769418387,1.43018217,104230.0,104220.0,0.05112788]
[1748769418519,1.43018217,104230.0,104220.0,0.06011992]
[1748769418727,1.43018217,104230.0,104220.0,0.05112788]
[1748769419835,1.43018217,104230.0,104220.0,0.06012004]
[1748769420038,1.43018217,104230.0,104220.0,0.05112788]
[1748769420445,1.52269339,104230.0,104220.0,0.05112788]
[1748769421074,1.43018217,104230.0,104220.0,0.06012024]
[1748769421424,1.43018217,104230.0,104220.0,0.05112788]
[1748769421692,1.44472302,104230.0,104220.0,0.05112788]
[1748769421898,1.44472302,104230.0,104220.0,0.01892788]
[1748769422322,1.44472302,104230.0,104220.0,0.02792159]
[1748769422530,1.53723424,104230.0,104220.0,0.02792174]
[1748769422945,1.53723424,104230.0,104220.0,0.02792173]
[1748769423575,1.44472302,104230.0,104220.0,0.02792173]
[1748769424163,1.44472302,104230.0,104220.0,0.03552788]
[1748769424379,1.44472302,104230.0,104220.0,0.04450958]
[1748769425215,1.44472302,104230.0,104220.0,0.01892788]
[1748769425421,1.44472302,104230.0,104220.0,0.02790977]
[1748769425638,2.03253424,104230.0,104220.0,0.02790977]
[1748769425857,2.03253424,104230.0,104220.0,0.01892788]
[1748769426933,2.06135024,104230.0,104220.0,0.01892788]
[1748769427866,2.06635092,104230.0,104220.0,0.01892788]
[1748769431225,7.11635092,104230.0,104220.0,0.01892788]
[1748769432075,0.55111152,104210.0,104200.0,0.031]
[1748769432290,1.52240283,104210.0,104200.0,0.031]
[1748769432497,1.90607283,104210.0,104200.0,0.031]
[1748769432888,0.21607616,104200.0,104190.0,0.03215]
[1748769433145,0.31193046,104200.0,104190.0,0.03215]
[1748769433317,0.32169377,104200.0,104190.0,0.03219878]
[1748769434172,0.66169377,104200.0,104190.0,0.03219878]
[1748769434382,0.66269377,104200.0,104190.0,0.03219878]
[1748769435129,0.66269377,104200.0,104190.0,0.03319878]
[1748769435336,0.75520499,104200.0,104190.0,0.03319878]
[1748769437059,0.66269377,104200.0,104190.0,0.03319878]
[1748769441668,0.65769377,104200.0,104190.0,0.03319878]
[1748769446465,1.04297377,104200.0,104190.0,0.03319878]
[1748769449939,1.04297377,104200.0,104190.0,0.04216494]
[1748769450140,1.04297377,104200.0,104190.0,0.00149878]
[1748769450341,1.51915499,104200.0,104190.0,0.00149878]
[1748769450565,1.51915499,104200.0,104190.0,0.03169878]
[1748769451376,1.53869816,104200.0,104190.0,0.03169878]
[1748769451797,1.5436849,104200.0,104190.0,0.03169878]
[1748769452197,1.5436849,104200.0,104190.0,0.01669878]
[1748769452726,1.5436849,104200.0,104190.0,0.00149878]
[1748769453654,1.5426849,104200.0,104190.0,0.00149878]
[1748769453885,1.5466849,104200.0,104190.0,0.00149878]
[1748769454093,1.5496849,104200.0,104190.0,0.00149878]
[1748769455642,1.5785129,104200.0,104190.0,0.00149878]
[1748769456258,6.7395129,104200.0,104190.0,0.00149878]
[1748769456658,6.73943299,104200.0,104190.0,0.00149878]
[1748769458180,6.73643299,104200.0,104190.0,0.00149878]
[1748769458680,6.74043299,104200.0,104190.0,0.00149878]
[1748769459240,7.04043299,104200.0,104190.0,0.00149878]
[1748769459476,0.55609551,104190.0,104180.0,0.00045]
[1748769459703,5.79446103,104190.0,104180.0,0.0004988]
[1748769459903,6.17813103,104190.0,104180.0,0.0004988]
[1748769460635,6.20796203,104190.0,104180.0,0.0004988]
[1748769461640,6.20996203,104190.0,104180.0,0.0004988]
[1748769463607,6.59528203,104190.0,104180.0,0.0004988]
[1748769470180,6.64528203,104190.0,104180.0,0.0004988]
[1748769470389,6.64532203,104190.0,104180.0,0.0004988]
[1748769470816,6.65532203,104190.0,104180.0,0.0004988]
[1748769471486,7.05632203,104190.0,104180.0,0.0004988]
[1748769471842,5.90611485,104180.0,104170.0,0.00045]
[1748769471980,6.09448037,104180.0,104170.0,0.00045]
[1748769472214,6.47815037,104180.0,104170.0,0.00045]
[1748769472472,6.48313258,104180.0,104170.0,0.00045]
[1748769473108,6.48713258,104180.0,104170.0,0.00045]
[1748769473794,6.49713258,104180.0,104170.0,0.00045]
[1748769474096,6.84185258,104180.0,104170.0,0.00045]
[1748769474332,6.84485258,104180.0,104170.0,0.00145]
[1748769478833,6.55013258,104180.0,104170.0,0.00145]
[1748769479036,6.93557258,104180.0,104170.0,0.00145]
[1748769479441,5.6061342,104170.0,104160.0,0.03295]
[1748769479642,6.22694838,104170.0,104160.0,0.03295]
[1748769479848,6.61061838,104170.0,104160.0,0.03295]
[1748769480071,6.63945438,104170.0,104160.0,0.03295]
[1748769480697,6.64145438,104170.0,104160.0,0.03295]
[1748769480936,6.64345438,104170.0,104160.0,0.03295]
[1748769481187,7.02889438,104170.0,104160.0,0.03295]
[1748769485205,6.64345438,104170.0,104160.0,0.03295]
[1748769485411,7.02889438,104170.0,104160.0,0.03295]
[1748769485624,1.59162318,104170.0,104160.0,0.03295]
[1748769485841,1.20824633,104170.0,104160.0,0.03295]
[1748769486161,1.84308633,104170.0,104160.0,0.03295]
[1748769486366,1.85762718,104170.0,104160.0,0.03295]
[1748769486613,1.56278718,104170.0,104160.0,0.03295]
[1748769486804,1.9502984,104170.0,104160.0,0.03295]
[1748769487022,1.5646184,104170.0,104160.0,0.03295]
[1748769487420,1.9502584,104170.0,104160.0,0.03295]
[1748769487621,1.20824633,104170.0,104160.0,0.03295]
[1748769487843,1.50320633,104170.0,104160.0,0.04191832]
[1748769488050,1.50328633,104170.0,104160.0,0.04191818]
[1748769488258,1.50328633,104170.0,104160.0,0.03295]
[1748769488259,1.11756633,104170.0,104160.0,0.03295]
[1748769488470,1.54824633,104170.0,104160.0,0.03295]
[1748769488643,1.53059765,104170.0,104160.0,0.03295]
[1748769489185,1.43991765,104170.0,104160.0,0.03295]
[1748769489387,1.82571765,104170.0,104160.0,0.03295]
[1748769490249,1.82571765,104170.0,104160.0,0.04192801]
[1748769490444,1.82563765,104170.0,104160.0,0.03295]
[1748769490645,1.82563765,104170.0,104160.0,0.04192802]
[1748769490847,1.82563765,104170.0,104160.0,0.03295]
[1748769491022,1.82635765,104170.0,104160.0,0.03295]
[1748769491420,1.82635765,104170.0,104160.0,0.04192802]
[1748769491620,1.82635765,104170.0,104160.0,0.03295]
[1748769491826,1.8408985,104170.0,104160.0,0.04192803]
[1748769492209,1.8408985,104170.0,104160.0,0.03295]
[1748769492457,1.93340972,104170.0,104160.0,0.04192804]
[1748769492804,1.93340972,104170.0,104160.0,0.03295]
[1748769493241,1.8408985,104170.0,104160.0,0.03295]
[1748769493614,1.8408985,104170.0,104160.0,0.0419485]
[1748769493816,1.8408985,104170.0,104160.0,0.03295]
[1748769494026,1.8408985,104170.0,104160.0,0.0419485]
[1748769494214,1.8408985,104170.0,104160.0,0.03295]
[1748769494420,1.93340972,104170.0,104160.0,0.03295]
[1748769494854,1.93340972,104170.0,104160.0,0.04194963]
[1748769495075,1.93340972,104170.0,104160.0,0.03295]
[1748769495695,1.93340972,104170.0,104160.0,0.04194987]
[1748769495924,1.93340972,104170.0,104160.0,0.03295]
[1748769496136,1.93340972,104170.0,104160.0,0.04194984]
[1748769496407,1.93340972,104170.0,104160.0,0.03295]
[1748769496607,1.93340972,104170.0,104160.0,0.0419367]
[1748769496861,6.98340972,104170.0,104160.0,0.04193669]
[1748769497474,6.68764972,104170.0,104160.0,0.03295]
[1748769497640,6.98340972,104170.0,104160.0,0.03295]
[1748769498665,6.98340972,104170.0,104160.0,0.00045]
[1748769498836,7.28340972,104170.0,104160.0,0.00045]
[1748769500321,7.28140972,104170.0,104160.0,0.00045]
[1748769500526,7.34744607,104170.0,104160.0,0.00045]
[1748769500734,7.27940972,104170.0,104160.0,0.00045]
[1748769501153,7.28740972,104170.0,104160.0,0.00145]
[1748769501635,7.35344706,104170.0,104160.0,0.00145]
[1748769501783,7.36344706,104170.0,104160.0,0.00145]
[1748769502833,7.35344706,104170.0,104160.0,0.00145]
[1748769503206,6.96700706,104170.0,104160.0,0.00145]
[1748769503456,6.97310887,104170.0,104160.0,0.03355]
[1748769503630,6.60096972,104170.0,104160.0,0.03355]
[1748769503832,6.98772972,104170.0,104160.0,0.03355]
[1748769504743,6.98772972,104170.0,104160.0,0.00145]
[1748769504920,7.29772972,104170.0,104160.0,0.00145]
[1748769505124,7.36378752,104170.0,104160.0,0.00145]
[1748769505377,0.55615356,104160.0,104150.0,0.0476277]
[1748769505580,5.81215999,104160.0,104150.0,0.04767653]
[1748769505820,6.19582999,104160.0,104150.0,0.04767653]
[1748769506028,6.20081404,104160.0,104150.0,0.04767653]
[1748769506269,6.22965404,104160.0,104150.0,0.04767653]
[1748769506780,6.23915685,104160.0,104150.0,0.04767653]
[1748769507194,6.24115685,104160.0,104150.0,0.04867653]
[1748769507412,6.24315685,104160.0,104150.0,0.04867653]
[1748769508558,6.24315685,104160.0,104150.0,0.01657653]
[1748769509566,6.34415685,104160.0,104150.0,0.01657653]
[1748769510219,6.34415685,104160.0,104150.0,0.03217653]
[1748769510520,6.34415685,104160.0,104150.0,0.01657653]
[1748769511473,6.34415685,104160.0,104150.0,0.03217653]
[1748769512195,6.34415685,104160.0,104150.0,0.04857653]
[1748769512723,6.34415685,104160.0,104150.0,0.01657653]
[1748769513074,6.34415685,104160.0,104150.0,0.03217653]
[1748769514410,6.34415685,104160.0,104150.0,0.04857653]
[1748769515000,6.34415685,104160.0,104150.0,0.03217653]
[1748769515283,6.34415685,104160.0,104150.0,0.04857653]
[1748769517634,6.34415685,104160.0,104150.0,0.01657653]
[1748769517836,6.34415685,104160.0,104150.0,0.03217653]
[1748769518253,6.34415685,104160.0,104150.0,0.04857653]
[1748769524546,6.63931685,104160.0,104150.0,0.04857653]
[1748769526630,6.73043685,104160.0,104150.0,0.04857653]
[1748769529049,0.55617292,104150.0,104140.0,0.00045]
[1748769529266,5.79453842,104150.0,104140.0,0.00045]
[1748769529481,6.17820842,104150.0,104140.0,0.00045]
[1748769530587,6.17920842,104150.0,104140.0,0.00045]
[1748769531223,6.17820842,104150.0,104140.0,0.00145]
[1748769531429,6.17920842,104150.0,104140.0,0.00145]
[1748769531777,6.17820842,104150.0,104140.0,0.00045]
[1748769531984,6.59408842,104150.0,104140.0,0.03215]
[1748769532795,6.59608842,104150.0,104140.0,0.03215]
[1748769533591,6.59608842,104150.0,104140.0,0.00045]
[1748769534025,6.89608842,104150.0,104140.0,0.03215]
[1748769534222,6.89580038,104150.0,104140.0,0.03215]
[1748769534406,6.89480038,104150.0,104140.0,0.03215]
[1748769534659,6.89280038,104150.0,104140.0,0.03215]
[1748769534867,6.89580038,104150.0,104140.0,0.03215]
[1748769535049,6.89580038,104150.0,104140.0,0.00045]
[1748769536069,6.89980038,104150.0,104140.0,0.00045]
[1748769536311,6.90980038,104150.0,104140.0,0.00045]
[1748769536517,6.92540038,104150.0,104140.0,0.00045]
[1748769536757,6.90980038,104150.0,104140.0,0.00045]
[1748769537347,6.97581964,104150.0,104140.0,0.00045]
[1748769538517,6.97583092,104150.0,104140.0,0.00045]
[1748769538744,7.27167092,104150.0,104140.0,0.00045]
[1748769538950,7.36291092,104150.0,104140.0,0.00045]
[1748769539505,5.60619228,104140.0,104130.0,0.03215]
[1748769539732,5.7945578,104140.0,104130.0,0.03215]
[1748769539934,6.1782278,104140.0,104130.0,0.03215]
[1748769540102,6.21205482,104140.0,104130.0,0.03215]
[1748769540494,6.27910183,104140.0,104130.0,0.03215]
[1748769541304,6.28110183,104140.0,104130.0,0.03215]
[1748769541720,6.57710183,104140.0,104130.0,0.03215]
[1748769542576,6.28110183,104140.0,104130.0,0.03215]
[1748769542779,6.66862183,104140.0,104130.0,0.03215]
[1748769542924,6.66662183,104140.0,104130.0,0.03215]
[1748769543136,6.66562183,104140.0,104130.0,0.03215]
[1748769543337,6.66962183,104140.0,104130.0,0.03215]
[1748769543541,6.67262183,104140.0,104130.0,0.03215]
[1748769544126,6.69230677,104140.0,104130.0,0.03215]
[1748769546798,6.69234322,104140.0,104130.0,0.03215]
[1748769553202,6.30482322,104140.0,104130.0,0.03215]
[1748769553397,6.33009976,104140.0,104130.0,0.03215]
[1748769553604,6.23758854,104140.0,104130.0,0.03215]
[1748769553806,6.50558454,104140.0,104130.0,0.03215]
[1748769554617,6.50574454,104140.0,104130.0,0.03215]
[1748769555038,1.06738454,104140.0,104130.0,0.03215]
[1748769555247,1.45578454,104140.0,104130.0,0.03215]
[1748769555451,1.54829576,104140.0,104130.0,0.03215]
[1748769556231,1.45578454,104140.0,104130.0,0.03215]
[1748769559168,1.06738454,104140.0,104130.0,0.03215]
[1748769559474,1.15874454,104140.0,104130.0,0.03215]